bitfinex/quotes_SOLUSD_20240818
["timestamp","ask_amount","ask_price","bid_price","bid_amount"]
[1724008686623,15.77395337,146.17,146.1,8.83]
[1724008687031,45.0,146.16,146.08,8.83]
[1724008687770,45.0,146.16,146.1,8.83]
[1724008689553,15.1074,146.17,146.1,8.83]
[1724008689737,45.0,146.16,146.1,8.83]
[1724008691054,15.1074,146.17,146.1,8.83]
[1724008691253,15.77395337,146.17,146.1,8.83]
[1724008693029,15.1074,146.17,146.1,8.83]
[1724008695062,15.77395337,146.17,146.1,8.83]
[1724008695244,7.53031641,146.16,146.1,8.83]
[1724008695564,15.1074,146.17,146.1,8.83]
[1724008695863,7.53036758,146.16,146.1,8.83]
[1724008696032,15.1074,146.17,146.1,8.83]
[1724008696239,7.53041649,146.16,146.12,8.83]
[1724008696460,15.77395337,146.17,146.08,15.6725]
[1724008696461,8.19696986,146.15,146.08,8.83]
[1724008696666,8.1973688,146.14,146.08,8.83]
[1724008696836,7.16094303,146.16,146.08,8.83]
[1724008697164,7.16094303,146.16,146.04,16.4779]
[1724008697165,7.53125407,146.15,146.1,8.83]
[1724008697456,7.53125407,146.14,146.1,8.83]
[1724008697665,30.0,146.13,146.1,8.83]
[1724008699738,30.0,146.13,146.08,8.83]
[1724008699966,8.19796086,146.12,146.08,8.83]
[1724008700146,7.53140749,146.11,146.08,8.83]
[1724008701038,7.53140749,146.1,146.08,8.83]
[1724008701239,6.8419,146.16,146.08,8.83]
[1724008701240,7.53162999,146.09,146.08,8.83]
[1724008702837,7.53162999,146.09,146.04,16.4779]
[1724008703062,0.66655337,146.15,146.08,8.83]
[1724008703342,7.53164131,146.14,146.08,8.83]
[1724008703544,7.53164131,146.13,146.08,8.83]
[1724008703842,7.53164131,146.12,146.08,8.83]
[1724008704041,7.53164131,146.11,146.08,8.83]
[1724008704356,7.53162773,146.1,146.08,8.83]
[1724008704556,7.53162773,146.09,146.08,8.83]
[1724008705053,7.53162773,146.09,146.04,16.4779]
[1724008705248,7.53162773,146.08,146.05,20.0]
[1724008705447,7.53162773,146.07,146.06,8.83]
[1724008705858,15.4002,146.12,146.06,8.83]
[1724008706042,7.53204724,146.11,146.06,8.83]
[1724008706251,7.53204724,146.1,146.08,8.83]
[1724008706565,15.4002,146.16,146.08,8.83]
[1724008706765,7.53109624,146.15,146.1,8.83]
[1724008706948,7.53109624,146.14,146.1,8.83]
[1724008707149,7.53109624,146.13,146.1,8.83]
[1724008707476,7.53109624,146.12,146.1,8.83]
[1724008707649,15.4002,146.16,146.1,8.83]
[1724008707650,7.53109624,146.11,146.1,8.83]
[1724008708386,7.5303838,146.11,146.1,8.83]
[1724008708963,6.4597,146.17,146.1,8.83]
[1724008709156,7.5293713,146.16,146.12,8.83]
[1724008709354,7.5293713,146.15,146.12,8.83]
[1724008709555,7.5293713,146.14,146.12,8.83]
[1724008709770,7.5293713,146.13,146.12,8.83]
[1724008710169,7.5293713,146.16,146.12,8.83]
[1724008710376,7.5293713,146.15,146.12,8.83]
[1724008710581,7.5293713,146.14,146.12,8.83]
[1724008710881,7.5293713,146.13,146.12,8.83]
[1724008711252,6.4597,146.17,146.12,8.83]
[1724008711458,7.52931445,146.16,146.12,8.83]
[1724008711761,7.52931445,146.15,146.12,8.83]
[1724008711983,7.52931445,146.14,146.12,8.83]
[1724008712291,6.4597,146.17,146.12,8.83]
[1724008712483,7.52954928,146.16,146.12,8.83]
[1724008712666,7.52954928,146.15,146.12,8.83]
[1724008712859,7.52954928,146.14,146.12,8.83]
[1724008713056,7.52954928,146.13,146.12,8.83]
[1724008713378,7.16043021,146.18,146.12,8.83]
[1724008713574,7.52950734,146.17,146.12,8.83]
[1724008713782,7.52950734,146.16,146.12,8.83]
[1724008714081,7.16043021,146.18,146.12,8.83]
[1724008714082,7.52950734,146.15,146.12,8.83]
[1724008714277,7.52950734,146.14,146.12,8.83]
[1724008714581,7.16043021,146.18,146.12,8.83]
[1724008714775,7.52950734,146.17,146.12,8.83]
[1724008715094,7.52950734,146.16,146.12,8.83]
[1724008715293,7.52950734,146.15,146.14,8.83]
[1724008716483,10.15,146.19,146.14,8.83]
[1724008716783,10.15,146.19,146.16,8.83]
[1724008716784,7.52806077,146.18,146.16,8.83]
[1724008716961,10.15,146.19,146.12,16.0728]
[1724008716962,10.15,146.19,146.17,10.19812744]
[1724008717158,10.15,146.19,146.17,8.83]
[1724008717369,10.15,146.19,146.18,65.0]
[1724008718154,0.8714604,146.21,146.18,81.0728]
[1724008718375,0.8714604,146.21,146.2,8.83]
[1724008719662,0.8714604,146.21,146.2,28.83]
[1724008722180,0.8714604,146.21,146.2,30.1975889]
[1724008722883,0.8714604,146.21,146.2,28.83]
[1724008723086,23.74110685,146.29,146.25,8.83]
[1724008723087,7.15570685,146.29,146.25,8.83]
[1724008723383,6.0357,146.33,146.25,8.83]
[1724008723593,7.52256378,146.32,146.25,8.83]
[1724008723795,14.8657,146.33,146.25,8.83]
[1724008724000,21.6998,146.33,146.25,8.83]
[1724008724189,8.83,146.31,146.23,8.83]
[1724008724380,14.8657,146.33,146.23,8.83]
[1724008724697,45.0,146.32,146.25,8.83]
[1724008725399,6.0357,146.33,146.25,8.83]
[1724008726773,12.8695,146.33,146.24,8.83]
[1724008727176,13.53605337,146.33,146.24,8.83]
[1724008727390,12.8695,146.33,146.24,8.83]
[1724008727606,45.0,146.32,146.24,8.83]
[1724008727897,6.0357,146.33,146.24,8.83]
[1724008728197,6.70225337,146.33,146.24,8.83]
[1724008728413,12.8696,146.33,146.24,8.83]
[1724008728712,8.83,146.3,146.21,8.83]
[1724008728887,45.0,146.29,146.21,8.83]
[1724008729210,10.0,146.29,146.23,8.83]
[1724008729404,10.0,146.29,146.17,31.35326583]
[1724008729405,10.0,146.29,146.22,8.83]
[1724008731106,0.66655337,146.28,146.22,8.83]
[1724008731684,10.0,146.29,146.22,8.83]
[1724008732094,10.66655337,146.29,146.22,8.83]
[1724008732627,10.0,146.29,146.22,8.83]
[1724008734778,10.0,146.29,146.17,31.35326583]
[1724008734779,15.2127,146.28,146.2,8.83]
[1724008734977,7.32605337,146.27,146.18,8.83]
[1724008735199,53.83,146.26,146.18,8.83]
[1724008735402,54.49655337,146.26,146.18,8.83]
[1724008735603,8.83,146.24,146.15,8.83]
[1724008735785,53.83,146.26,146.17,8.83]
[1724008735981,6.8377,146.25,146.17,8.83]
[1724008736183,45.0,146.24,146.17,8.83]
[1724008736587,60.6681,146.24,146.15,8.83]
[1724008737705,53.83,146.24,146.15,8.83]
[1724008737904,60.98713257,146.24,146.15,8.83]
[1724008745393,52.15713257,146.24,146.17,8.83]
[1724008745716,6.8377,146.25,146.17,8.83]
[1724008746114,6.8372,146.26,146.19,8.83]
[1724008747423,0.66655337,146.25,146.19,8.83]
[1724008747641,0.66655337,146.25,146.22,8.83]
[1724008747836,7.15646041,146.27,146.24,8.83]
[1724008748013,15.2127,146.28,146.24,8.83]
[1724008748202,10.0,146.29,146.26,8.83]
[1724008749806,10.0,146.29,146.2,51.4745]
[1724008749807,10.0,146.29,146.24,8.83]
[1724008750926,10.0,146.29,146.23,8.83]
[1724008751131,10.0,146.29,146.22,8.83]
[1724008751724,10.0,146.29,146.18,15.5951]
[1724008751914,18.83,146.29,146.21,8.83]
[1724008752415,10.0,146.29,146.21,8.83]
[1724008753805,10.0,146.29,146.23,8.83]
[1724008754325,10.0,146.29,146.25,8.83]
[1724008755122,10.0,146.29,146.18,24.38071065]
[1724008755123,10.0,146.29,146.23,8.83]
[1724008758029,0.66655337,146.28,146.18,15.5951]
[1724008758336,15.4168,146.27,146.19,8.83]
[1724008761209,15.4168,146.27,146.21,8.83]
[1724008762441,7.52412124,146.26,146.21,8.83]
[1724008762627,15.4168,146.27,146.21,8.83]
[1724008762804,7.52412554,146.26,146.21,8.83]
[1724008763008,15.4168,146.27,146.21,8.83]
[1724008763311,7.52407897,146.26,146.21,8.83]
[1724008763659,15.4168,146.27,146.21,8.83]
[1724008763931,7.52407671,146.26,146.21,8.83]
[1724008764131,15.4168,146.27,146.21,8.83]
[1724008764308,7.52412554,146.26,146.21,8.83]
[1724008764507,7.52432312,146.25,146.21,8.83]
[1724008764818,15.4168,146.27,146.21,8.83]
[1724008765017,7.52426875,146.26,146.21,8.83]
[1724008765218,15.4168,146.27,146.21,8.83]
[1724008765415,7.52427104,146.26,146.21,8.83]
[1724008765724,15.4168,146.27,146.21,8.83]
[1724008767636,15.4168,146.27,146.23,8.83]
[1724008774151,15.4168,146.27,146.24,1.36742708]
[1724008774448,10.0,146.29,146.24,1.36742708]
[1724008774637,7.52286262,146.28,146.24,1.36742708]
[1724008774837,10.0,146.29,146.25,8.83]
[1724008775035,10.0,146.29,146.27,8.83]
[1724008778328,10.0,146.29,146.28,1.36693418]
[1724008778960,10.0,146.29,146.28,46.36693418]
[1724008779257,10.0,146.29,146.28,45.0]
[1724008779754,10.0,146.29,146.27,24.9054]
[1724008779990,10.0,146.29,146.23,35.32]
[1724008779991,10.0,146.29,146.26,8.83]
[1724008780652,10.0,146.29,146.27,1.36712695]
[1724008780960,10.0,146.29,146.26,8.83]
[1724008781457,15.9303604,146.35,146.28,8.83]
[1724008781665,15.9303604,146.35,146.33,8.83]
[1724008782161,15.9303604,146.35,146.31,8.83]
[1724008782359,0.8714604,146.35,146.33,8.83]
[1724008783430,0.8714604,146.35,146.32,8.83]
[1724008784494,0.8714604,146.35,146.32,22.0]
[1724008784861,0.8714604,146.35,146.3,22.0]
[1724008789679,0.8714604,146.35,146.25,16.0754]
[1724008789966,0.8714604,146.35,146.25,38.0754]
[1724008790293,0.66655337,146.34,146.25,38.0754]
[1724008790492,0.66655337,146.34,146.25,22.0]
[1724008790668,15.0589,146.33,146.25,22.0]
[1724008790991,0.66655337,146.32,146.23,22.0]
[1724008791158,15.0589,146.33,146.23,22.0]
[1724008791364,15.0589,146.33,146.25,22.0]
[1724008791808,6.5419,146.32,146.25,22.0]
[1724008792067,6.5419,146.32,146.26,20.0]
[1724008792290,6.5419,146.32,146.23,22.0]
[1724008793372,6.5419,146.32,146.22,1.36727143]
[1724008793562,6.5419,146.32,146.22,23.36727143]
[1724008793765,6.5419,146.32,146.23,20.0]
[1724008795270,6.5419,146.32,146.24,68.36725259]
[1724008795789,6.5419,146.32,146.24,67.0]
[1724008795997,6.5419,146.32,146.24,22.0]
[1724008796692,6.5419,146.32,146.25,1.36725823]
[1724008796889,6.5419,146.32,146.24,22.0]
[1724008797071,13.69300418,146.32,146.24,22.0]
[1724008798085,6.5419,146.32,146.25,1.36726414]
[1724008800478,6.5419,146.32,146.25,45.0]
[1724008800799,6.5419,146.32,146.24,22.0]
[1724008801004,6.5419,146.32,146.23,20.0]
[1724008801296,6.5419,146.32,146.24,1.36727379]
[1724008801496,6.5419,146.32,146.23,21.36727378]
[1724008801702,6.5419,146.32,146.23,20.0]
[1724008801878,7.52221408,146.31,146.23,20.0]
[1724008802082,6.5419,146.32,146.24,22.0]
[1724008802291,7.52220968,146.31,146.24,22.0]
[1724008802476,6.5419,146.32,146.25,1.36724396]
[1724008802674,7.52221194,146.31,146.25,1.36724396]
[1724008802999,6.5419,146.32,146.24,22.0]
[1724008803182,7.52221096,146.31,146.25,1.36724994]
[1724008803385,6.5419,146.32,146.24,22.0]
[1724008803585,7.52222815,146.31,146.25,1.36727406]
[1724008803796,6.5419,146.32,146.24,22.0]
[1724008803993,7.52224534,146.31,146.23,20.0]
[1724008804183,6.5419,146.32,146.24,46.36727405]
[1724008804389,6.5419,146.32,146.24,68.36727405]
[1724008805505,6.5419,146.32,146.26,22.0]
[1724008805707,6.5419,146.32,146.27,45.0]
[1724008805889,6.5419,146.32,146.28,22.0]
[1724008806075,6.5419,146.32,146.29,1.36684399]
[1724008806283,15.0589,146.33,146.3,1.36681363]
[1724008806790,15.0589,146.33,146.29,8.8]
[1724008807400,15.0589,146.33,146.27,8.8]
[1724008807987,15.0589,146.33,146.28,1.36699151]
[1724008808310,15.0589,146.33,146.29,8.8]
[1724008811090,15.0589,146.33,146.27,8.8]
[1724008812306,7.5212404,146.32,146.25,8.8]
[1724008812604,15.0589,146.33,146.27,8.8]
[1724008813203,15.0589,146.33,146.28,1.36698226]
[1724008813508,15.0589,146.33,146.28,1.36691833]
[1724008814581,15.0589,146.33,146.27,8.8]
[1724008819122,7.52052259,146.32,146.27,8.8]
[1724008819331,15.0589,146.33,146.26,8.8]
[1724008819493,7.52052484,146.32,146.27,20.0]
[1724008819698,15.0589,146.33,146.27,20.0]
[1724008819922,7.52052216,146.32,146.27,20.0]
[1724008820218,15.0589,146.33,146.28,8.8]
[1724008820786,15.0589,146.33,146.3,8.8]
[1724008820991,15.0589,146.33,146.31,1.36676897]
[1724008821607,0.8714604,146.35,146.32,8.8]
[1724008821808,0.8714604,146.35,146.34,8.8]
[1724008824522,0.8714604,146.35,146.34,53.8]
[1724008825761,26.0051,146.41,146.34,53.8]
[1724008825937,7.51731579,146.4,146.38,8.8]
[1724008826134,7.51731579,146.39,146.38,8.8]
[1724008826342,26.0051,146.41,146.38,8.8]
[1724008826652,7.51713277,146.4,146.38,8.8]
[1724008826823,26.0051,146.41,146.39,45.0]
[1724008826824,10.0,146.41,146.39,45.0]
[1724008827027,10.0,146.41,146.4,8.8]
[1724008827359,10.0,146.41,146.4,53.8]
[1724008828517,10.0,146.41,146.38,21.98]
[1724008828726,10.0,146.41,146.39,45.0]
[1724008828932,10.0,146.41,146.38,21.98]
[1724008829132,10.0,146.41,146.39,1.36592203]
[1724008829434,10.0,146.41,146.38,21.98]
[1724008829629,10.0,146.41,146.39,1.36590685]
[1724008829828,10.0,146.41,146.38,21.98]
[1724008830548,10.0,146.41,146.39,1.3659058]
[1724008831060,10.0,146.41,146.36,21.98]
[1724008831247,10.0,146.41,146.37,21.36603396]
[1724008831557,10.0,146.41,146.37,20.0]
[1724008831730,10.0,146.41,146.37,21.36599384]
[1724008834362,10.0,146.41,146.38,21.98]
[1724008835559,10.0,146.41,146.37,20.0]
[1724008835766,16.0544,146.41,146.34,21.98]
[1724008835971,16.0544,146.41,146.35,20.0]
[1724008836365,16.0544,146.41,146.36,1.36613619]
[1724008837370,15.0623,146.4,146.35,20.0]
[1724008837877,15.0623,146.4,146.32,21.98]
[1724008839174,15.0623,146.4,146.33,65.0]
[1724008841155,15.0623,146.4,146.26,1.36634406]
[1724008841156,15.0623,146.4,146.26,21.1204]
[1724008841358,15.0623,146.4,146.28,21.98]
[1724008841359,6.2114,146.38,146.28,21.98]
[1724008842892,15.0623,146.37,146.29,20.0]
[1724008843053,15.0623,146.37,146.3,1.36674142]
[1724008843258,15.0623,146.37,146.3,23.34674142]
[1724008843589,15.0623,146.37,146.32,21.98]
[1724008843751,15.0623,146.37,146.33,21.3663826]
[1724008843953,15.0623,146.37,146.33,20.0]
[1724008844662,15.0623,146.37,146.34,1.36638408]
[1724008845458,15.0623,146.37,146.33,20.0]
[1724008845657,15.0623,146.37,146.33,21.36638165]
[1724008846080,15.0623,146.37,146.33,20.0]
[1724008848684,15.0623,146.37,146.34,1.36646729]
[1724008848896,15.0623,146.37,146.33,20.0]
[1724008849672,15.0623,146.37,146.27,10.15203386]
[1724008849962,15.0623,146.37,146.27,21.98]
[1724008850682,15.0623,146.37,146.29,21.98]
[1724008850890,15.0623,146.37,146.33,21.98]
[1724008851058,15.0623,146.37,146.34,1.36637546]
[1724008851324,15.0623,146.37,146.33,21.98]
[1724008851687,15.0623,146.37,146.34,20.0]
[1724008856364,17.14777141,146.41,146.35,23.34635935]
[1724008856564,10.0,146.41,146.4,21.98]
[1724008856769,10.0,146.41,146.4,41.98]
[1724008858378,10.0,146.41,146.4,86.98]
[1724008860405,15.4155,146.48,146.4,86.98]
[1724008860609,15.4155,146.48,146.43,21.98]
[1724008860610,7.51401131,146.47,146.43,21.98]
[1724008860905,15.4155,146.48,146.44,21.36547444]
[1724008861113,15.4155,146.48,146.44,20.0]
[1724008861406,15.4155,146.48,146.45,1.36539076]
[1724008861703,15.4155,146.48,146.44,20.0]
[1724008863806,14.4155,146.48,146.44,20.0]
[1724008864101,14.4155,146.48,146.45,21.98]
[1724008864904,0.8714604,146.5,146.45,21.98]
[1724008865089,0.8714604,146.5,146.47,21.98]
[1724008865286,0.8714604,146.5,146.48,65.0]
[1724008866582,0.8714604,146.5,146.48,20.0]
[1724008867392,0.8714604,146.5,146.49,66.98]
[1724008867603,0.8714604,146.5,146.49,86.98]
[1724008868481,0.8714604,146.5,146.49,65.0]
[1724008868702,0.8714604,146.5,146.49,86.98]
[1724008874431,0.8714604,146.5,146.49,20.0]
[1724008874607,0.8714604,146.5,146.48,20.0]
[1724008877132,0.0214604,146.54,146.48,20.0]
[1724008877305,0.0214604,146.54,146.49,45.0]
[1724008877712,0.0214604,146.54,146.49,66.98]
[1724008879129,0.0214604,146.54,146.5,20.0]
[1724008879305,21.855,146.57,146.5,20.0]
[1724008879637,21.3764604,146.57,146.5,20.0]
[1724008880109,0.66655337,146.56,146.5,20.0]
[1724008880441,0.66655337,146.55,146.5,20.0]
[1724008880735,28.1990604,146.57,146.48,20.0]
[1724008880916,21.3764604,146.57,146.48,20.0]
[1724008881436,22.04301377,146.57,146.48,20.0]
[1724008882238,22.04301377,146.57,146.49,66.98]
[1724008882239,21.3764604,146.57,146.49,66.98]
[1724008882939,21.3764604,146.57,146.48,20.0]
[1724008883533,21.3764604,146.57,146.49,21.98]
[1724008885127,28.1991604,146.57,146.48,20.0]
[1724008886152,15.6191,146.53,146.41,258.2]
[1724008886453,15.6191,146.53,146.45,21.98]
[1724008886611,22.4438,146.53,146.4,16.3902]
[1724008886816,22.4438,146.53,146.43,21.98]
[1724008887134,15.6191,146.53,146.43,21.98]
[1724008887524,15.6191,146.53,146.44,1.36540604]
[1724008888040,15.6191,146.53,146.45,21.98]
[1724008888729,15.6191,146.53,146.46,1.36525012]
[1724008889353,15.6191,146.53,146.45,21.98]
[1724008890425,16.28565337,146.53,146.45,21.98]
[1724008890626,15.6191,146.53,146.45,21.98]
[1724008894346,15.6191,146.53,146.46,1.36520954]
[1724008896457,15.6191,146.53,146.45,21.98]
[1724008900557,15.6191,146.53,146.46,10.14531616]
[1724008900755,15.6191,146.53,146.46,8.78]
[1724008901277,7.5117714,146.52,146.46,8.78]
[1724008901444,15.6191,146.53,146.46,8.78]
[1724008901445,7.5117714,146.51,146.46,8.78]
[1724008901753,15.6191,146.53,146.46,8.78]
[1724008901969,7.5117759,146.52,146.46,8.78]
[1724008902168,7.5117759,146.51,146.46,8.78]
[1724008902363,7.5117759,146.5,146.48,8.78]
[1724008902543,15.6191,146.53,146.48,8.78]
[1724008903341,7.51056003,146.52,146.48,8.78]
[1724008903538,15.6191,146.53,146.48,8.78]
[1724008903846,7.51056459,146.52,146.48,8.78]
[1724008904048,15.6191,146.53,146.48,8.78]
[1724008904248,7.51056684,146.52,146.48,8.78]
[1724008904462,7.51056684,146.51,146.48,8.78]
[1724008904659,15.6191,146.53,146.48,8.78]
[1724008904965,7.51048167,146.52,146.48,8.78]
[1724008905168,15.6191,146.53,146.48,8.78]
[1724008905361,7.51044965,146.52,146.48,8.78]
[1724008905547,7.51044965,146.51,146.48,8.78]
[1724008905865,15.6191,146.53,146.48,8.78]
[1724008906164,7.51008496,146.52,146.48,8.78]
[1724008906349,7.51008496,146.51,146.48,8.78]
[1724008906546,15.6191,146.53,146.48,8.78]
[1724008906746,7.51037022,146.52,146.48,8.78]
[1724008907045,7.51037022,146.51,146.48,8.78]
[1724008907247,15.6191,146.53,146.48,8.78]
[1724008907456,7.5104474,146.52,146.48,8.78]
[1724008907648,7.5104474,146.51,146.48,8.78]
[1724008907845,15.6191,146.53,146.48,8.78]
[1724008908050,7.51045734,146.52,146.48,8.78]
[1724008908280,7.51045734,146.51,146.48,8.78]
[1724008908444,15.6191,146.53,146.5,8.78]
[1724008908765,7.50971309,146.52,146.5,8.78]
[1724008908946,15.6191,146.53,146.5,8.78]
[1724008909265,7.50971534,146.52,146.44,35.12]
[1724008909443,7.50971534,146.51,146.48,8.78]
[1724008909650,15.6191,146.53,146.48,8.78]
[1724008909852,7.5103586,146.52,146.48,8.78]
[1724008910170,7.5103586,146.51,146.48,8.78]
[1724008910337,15.6191,146.53,146.48,8.78]
[1724008910540,7.51035424,146.52,146.48,8.78]
[1724008910872,7.51033787,146.51,146.48,8.78]
[1724008911056,15.6191,146.53,146.48,8.78]
[1724008911251,7.51033562,146.52,146.48,8.78]
[1724008911465,15.6191,146.53,146.48,8.78]
[1724008911773,7.50961997,146.52,146.48,8.78]
[1724008911967,15.6191,146.53,146.48,8.78]
[1724008912146,7.50962221,146.52,146.48,8.78]
[1724008912465,15.6191,146.53,146.48,8.78]
[1724008912773,7.50960584,146.52,146.48,8.78]
[1724008912943,15.6191,146.53,146.5,8.78]
[1724008913272,22.2226,146.57,146.52,8.78]
[1724008913493,7.50867909,146.56,146.52,8.78]
[1724008913775,7.50866788,146.55,146.52,8.78]
[1724008913949,7.50866788,146.54,146.52,8.78]
[1724008914153,22.2226,146.57,146.52,8.78]
[1724008914363,7.508615,146.56,146.52,8.78]
[1724008914661,7.50861049,146.55,146.54,8.78]
[1724008917267,7.50861049,146.55,146.45,61.0882]
[1724008917268,7.50861049,146.55,146.52,8.78]
[1724008917470,22.2226,146.57,146.52,8.78]
[1724008917660,7.50871034,146.56,146.52,8.78]
[1724008917860,7.50871034,146.55,146.52,8.78]
[1724008918058,22.2226,146.57,146.52,8.78]
[1724008918260,7.50866171,146.56,146.52,8.78]
[1724008918471,7.50866171,146.55,146.52,8.78]
[1724008918671,22.2226,146.57,146.52,8.78]
[1724008918978,7.50865677,146.56,146.52,8.78]
[1724008919155,7.50865677,146.55,146.52,8.78]
[1724008919359,22.2226,146.57,146.52,8.78]
[1724008919564,7.50865677,146.56,146.52,8.78]
[1724008919761,7.50865677,146.55,146.52,8.78]
[1724008919971,22.2226,146.57,146.52,8.78]
[1724008920170,7.5086572,146.56,146.52,8.78]
[1724008920477,7.5086572,146.55,146.52,8.78]
[1724008920675,22.2226,146.57,146.52,8.78]
[1724008920880,7.50866171,146.56,146.52,8.78]
[1724008921079,7.50866171,146.55,146.52,8.78]
[1724008921379,22.2226,146.57,146.52,8.78]
[1724008921675,7.50866171,146.56,146.52,8.78]
[1724008921900,7.50866171,146.55,146.52,8.78]
[1724008922077,22.2226,146.57,146.52,8.78]
[1724008922386,7.5086572,146.56,146.52,8.78]
[1724008922555,7.5086572,146.55,146.54,8.78]
[1724008922964,7.5086572,146.56,146.54,8.78]
[1724008923184,15.5867,146.57,146.52,8.78]
[1724008923185,7.5086572,146.55,146.52,8.78]
[1724008923366,15.5867,146.57,146.52,8.78]
[1724008923567,7.50866723,146.56,146.52,8.78]
[1724008923868,7.50866723,146.55,146.52,8.78]
[1724008924068,15.5867,146.57,146.52,8.78]
[1724008924272,7.50871034,146.56,146.52,8.78]
[1724008924471,7.50871034,146.55,146.52,8.78]
[1724008924670,0.66655337,146.56,146.45,16.0882]
[1724008924873,7.50866171,146.55,146.49,8.78]
[1724008925075,7.50866171,146.54,146.49,8.78]
[1724008925272,6.0913,146.56,146.49,8.78]
[1724008925476,7.5090375,146.55,146.49,8.78]
[1724008925683,6.0913,146.56,146.49,8.78]
[1724008925863,7.50909267,146.55,146.49,8.78]
[1724008926059,6.0913,146.56,146.49,8.78]
[1724008926298,6.0913,146.56,146.45,16.0882]
[1724008926299,7.50909042,146.55,146.51,8.78]
[1724008926584,15.5867,146.57,146.53,8.78]
[1724008926759,7.50866396,146.56,146.53,8.78]
[1724008926964,7.50866396,146.55,146.53,8.78]
[1724008927165,7.50866396,146.55,146.45,16.0882]
[1724008927166,16.25325337,146.57,146.51,8.78]
[1724008927389,7.50865945,146.56,146.51,8.78]
[1724008927684,16.25325337,146.57,146.51,8.78]
[1724008927887,0.66655337,146.55,146.49,8.78]
[1724008928195,7.50928296,146.54,146.49,8.78]
[1724008928493,15.5867,146.57,146.49,8.78]
[1724008928793,15.5867,146.57,146.51,8.78]
[1724008928794,7.50947979,146.56,146.51,8.78]
[1724008928968,7.50947979,146.55,146.51,8.78]
[1724008929300,15.5867,146.57,146.51,8.78]
[1724008929593,15.5867,146.57,146.45,16.0882]
[1724008929594,7.50908303,146.56,146.49,8.78]
[1724008929770,7.50908303,146.55,146.49,8.78]
[1724008929972,25.03325337,146.57,146.49,8.78]
[1724008929973,7.50908303,146.54,146.49,8.78]
[1724008930293,24.3667,146.57,146.49,8.78]
[1724008930483,7.50946968,146.56,146.49,8.78]
[1724008930796,7.50946968,146.55,146.49,8.78]
[1724008930996,7.50946968,146.54,146.49,8.78]
[1724008931203,24.3667,146.57,146.49,8.78]
[1724008931367,7.50964981,146.56,146.49,8.78]
[1724008931572,7.50964981,146.55,146.49,8.78]
[1724008931898,7.50964981,146.54,146.49,8.78]
[1724008932063,7.50964981,146.53,146.49,8.78]
[1724008932269,15.5867,146.57,146.49,8.78]
[1724008932468,7.5098521,146.56,146.51,8.78]
[1724008932668,7.5098521,146.55,146.51,8.78]
[1724008932973,15.5867,146.57,146.51,8.78]
[1724008932974,7.5098521,146.54,146.51,8.78]
[1724008933181,7.5098521,146.53,146.51,8.78]
[1724008933379,15.5867,146.57,146.51,8.78]
[1724008933575,7.50991965,146.56,146.51,8.78]
[1724008933771,7.50991204,146.55,146.51,8.78]
[1724008934001,7.50991204,146.54,146.51,8.78]
[1724008934191,7.50991204,146.53,146.51,8.78]